[Event "10th LBHM Open 2024"]
[Site "Pune"]
[Date "2024.05.22"]
[Round "9.7"]
[White "Koustuv Dash"]
[Black "Sherla Prathamesh"]
[Result "1/2-1/2"]
[ECO "A84"]
[WhiteElo "2133"]
[BlackElo "1855"]
[Annotator "RC"]
[PlyCount "148"]
[EventDate "2024.05.21"]
[EventType "swiss"]
[EventCountry "IND"]
[SourceTitle "playchess.com"]
[Source "ChessBase"]
[SourceQuality "1"]
[TimeControl "5400+30"]

1. d4 {[%emt 0:00:10]} e6 {[%emt 0:03:56]} 2. c4 {[%emt 0:00:05]} f5 {[%emt 0:00:29]} 3. Nf3 {[%emt 0:00:20]} Nf6 {[%emt 0:00:07]} 4. Nc3 {[%emt 0:00:16]} b6 {[%emt 0:00:06]} 5. g3 {[%emt 0:00:36]} Bb7 {[%emt 0:00:18]} 6. Bg2 {[%emt 0:00:02]} Bb4 {[%emt 0:00:10]} 7. Bd2 {[%emt 0:00:23]} O-O {[%emt 0:00:37]} 8. O-O {[%emt 0:00:20]} Bxc3 {[%emt 0:00:07]} 9. Bxc3 {[%emt 0:00:03]} Be4 {[%emt 0:00:10]} 10. Rc1 {[%emt 0:02:27]} Qe8 {[%emt 1:29:30]} 11. d5 {[%emt 0:16:17]} exd5 {[%emt 0:07:16]} 12. Bxf6 {[%emt 0:02:12]} Rxf6 {[%emt 0:01:16]} 13. cxd5 {[%emt 0:00:24]} c6 {[%emt 0:10:55]} 14. dxc6 {[%emt 0:20:02]} dxc6 {[%emt 0:04:02]} 15. Qa4 {[%emt 0:03:34]} Nd7 {[%emt 0:03:49]} 16. Rfd1 {[%emt 0:03:14]} Nc5 {[%emt 0:02:49]} 17. Qd4 {[%emt 0:00:34]} Ne6 {[%emt 0:59:48]} 18. Qe5 {[%emt 0:02:27]} Bd5 {[%emt 0:08:41]} 19. Nh4 {[%emt 0:02:55]} Bxg2 {[%emt 0:01:57]} 20. Kxg2 {[%emt 0:00:35]} Nf8 {[%emt 0:02:19]} 21. Nf3 {[%emt 0:44:04]} Qf7 {[%emt 0:05:02]} 22. b3 {[%emt 0:03:08]} Re8 {[%emt 0:02:23]} 23. Qb2 {[%emt 0:00:01]} Qe7 {[%emt 0:01:08]} 24. Rd2 {[%emt 0:01:48]} Rd6 {[%emt 0:09:19]} 25. Rxd6 {[%emt 0:00:16]} Qxd6 {[%emt 0:00:11]} 26. Qc2 {[%emt 0:01:24]} Qe6 {[%emt 0:08:08]} 27. Qxc6 {[%emt 0:02:35]} Qxc6 {[%emt 0:00:36]} 28. Rxc6 {[%emt 0:00:01]} Rxe2 {[%emt 0:00:12]} 29. a4 {[%emt 0:00:28]} Re4 {[%emt 0:11:08]} 30. Rc7 {[%emt 0:01:42]} a5 {[%emt 0:02:52]} 31. Rc8 {[%emt 0:00:18]} g6 {[%emt 0:01:54]} 32. Ng5 {[%emt 0:01:28]} Re7 {[%emt 0:09:50]} 33. Rb8 {[%emt 0:00:30]} h6 {[%emt 0:00:24]} 34. Nf3 {[%emt 0:00:25]} Re6 {[%emt 0:00:40]} 35. Nd4 {[%emt 0:13:31]} Rf6 {[%emt 0:02:51]} 36. Nb5 {[%emt 0:03:46]} Rc6 {[%emt 0:01:12]} 37. Rb7 {[%emt 0:02:16]} Ne6 {[%emt 0:02:45]} 38. Na7 {[%emt 0:00:17]} Rc7 {[%emt 0:01:39]} 39. Rxb6 {[%emt 0:00:41]} Rxa7 {[%emt 0:00:14]} 40. Rxe6 {[%emt 0:00:01]} Kf7 {[%emt 0:03:21]} 41. Rb6 {[%emt 0:00:01]} Rc7 {[%emt 0:03:09]} 42. Kf3 {[%emt 0:00:54]} Rc3+ {[%emt 0:00:25]} 43. Kf4 {[%emt 0:00:37]} Rc2 {[%emt 0:00:10]} 44. Ke3 {[%emt 0:00:44]} Rc3+ {[%emt 0:01:52]} 45. Kd4 {[%emt 0:05:42]} Rf3 {[%emt 0:00:31]} 46. Ke5 {[%emt 0:00:27]} Rxf2 {[%emt 0:00:20]} 47. Rb7+ {[%emt 0:00:01]} Ke8 {[%emt 0:01:04]} 48. Rg7 {[%emt 0:01:13]} g5 {[%emt 0:00:46]} 49. Ra7 {[%emt 0:00:29]} f4 {[%emt 0:01:37]} 50. Rxa5 {[%emt 0:01:33]} Rxh2 {[%emt 0:00:37]} 51. gxf4 {[%emt 0:00:01]} gxf4 {[%emt 0:00:43]} 52. Kxf4 {[%emt 0:00:07]} Rh4+ {[%emt 0:00:04]} 53. Ke3 {[%emt 0:01:57]} Rh3+ {[%emt 0:00:17]} 54. Kd4 {[%emt 0:00:52]} Rxb3 {[%emt 0:00:05]} 55. Kc4 {[%emt 0:00:02]} Rh3 {[%emt 0:00:37]} 56. Rd5 {[%emt 0:00:08]} Kf7 {[%emt 0:01:01]} 57. a5 {[%emt 0:00:09]} Ra3 {[%emt 0:00:19]} 58. Kb5 {[%emt 0:00:14]} Kg6 {[%emt 0:00:21]} 59. a6 {[%emt 0:00:05]} h5 {[%emt 0:00:06]} 60. Kb6 {[%emt 0:03:11]} Re3 {[%emt 0:01:37]} 61. a7 {[%emt 0:01:20]} Re8 {[%emt 0:00:04]} 62. Ra5 {[%emt 0:00:42]} h4 {[%emt 0:00:37]} 63. Kb7 {[%emt 0:01:05]} Re7+ {[%emt 0:00:52]} 64. Kc6 {[%emt 0:00:01]} Re8 {[%emt 0:00:13]} 65. a8=Q {[%emt 0:00:36]} Rxa8 {[%emt 0:00:03]} 66. Rxa8 {[%emt 0:00:04]} Kf5 {[%emt 0:00:18]} 67. Kd5 {[%emt 0:00:36]} h3 {[%emt 0:00:08]} 68. Rh8 {[%emt 0:01:03]} Kg4 {[%emt 0:00:05]} 69. Ke4 {[%emt 0:00:14]} Kg3 {[%emt 0:00:05]} 70. Ke3 {[%emt 0:00:41]} Kg2 {[%emt 0:02:23]} 71. Rg8+ {[%emt 0:00:46]} Kf1 {[%emt 0:00:09]} 72. Rh8 {[%emt 0:00:40]} Kg2 {[%emt 0:00:06]} 73. Rg8+ {[%emt 0:00:37]} Kf1 {[%emt 0:00:01]} 74. Kf3 {[%emt 0:00:30]} h2 {[%emt 0:00:10]} 1/2-1/2

[Event "10th LBHM Open 2024"]
[Site "Pune"]
[Date "2024.05.22"]
[Round "9.8"]
[White "Dutta, Joydeep"]
[Black "Nimay Agrawal"]
[Result "1/2-1/2"]
[ECO "D40"]
[WhiteElo "2073"]
[BlackElo "1856"]
[Annotator "RC"]
[PlyCount "60"]
[EventDate "2024.05.21"]
[EventType "swiss"]
[EventCountry "IND"]
[SourceTitle "playchess.com"]
[Source "ChessBase"]
[SourceQuality "1"]
[TimeControl "5400+30"]

1. Nf3 {[%emt 0:02:36]} d5 {[%emt 0:00:11]} 2. d4 {[%emt 0:04:36]} Nf6 {[%emt 0:00:18]} 3. c4 {[%emt 0:00:02]} e6 {[%emt 0:00:19]} 4. e3 {[%emt 0:00:51]} Be7 {[%emt 0:02:39]} 5. Bd3 {[%emt 0:00:35]} O-O {[%emt 0:01:23]} 6. O-O {[%emt 0:00:06]} c5 {[%emt 0:01:37]} 7. Nc3 {[%emt 0:03:59]} Nc6 {[%emt 0:02:33]} 8. dxc5 {[%emt 0:02:29]} dxc4 {[%emt 0:02:57]} 9. Bxc4 {[%emt 0:00:03]} Bxc5 {[%emt 0:04:05]} 10. a3 {[%emt 0:01:11]} Qxd1 {[%emt 0:06:17]} 11. Rxd1 {[%emt 0:00:11]} b6 {[%emt 0:03:28]} 12. b4 {[%emt 0:01:29]} Be7 {[%emt 0:02:32]} 13. Bb2 {[%emt 0:00:38]} Bb7 {[%emt 0:00:19]} 14. Rac1 {[%emt 0:00:31]} Rfd8 {[%emt 0:01:31]} 15. Kf1 {[%emt 0:03:49]} Rac8 {[%emt 0:15:28]} 16. Be2 {[%emt 0:07:08]} Kf8 {[%emt 0:04:49]} 17. Ke1 {[%emt 0:02:20]} a6 {[%emt 0:03:55]} 18. Na4 {[%emt 0:14:06]} Rxd1+ {[%emt 0:15:59]} 19. Kxd1 {[%emt 0:01:10]} Nd7 {[%emt 0:02:12]} 20. b5 {[%emt 0:01:26]} axb5 {[%emt 0:03:42]} 21. Bxb5 {[%emt 0:00:02]} Ncb8 {[%emt 0:00:17]} 22. Rxc8+ {[%emt 0:05:52]} Bxc8 {[%emt 0:00:01]} 23. Ne5 {[%emt 0:00:58]} Nxe5 {[%emt 0:03:26]} 24. Bxe5 {[%emt 0:00:51]} Bd7 {[%emt 0:00:13]} 25. Bxd7 {[%emt 0:01:24]} Nxd7 {[%emt 0:00:50]} 26. Bc7 {[%emt 0:00:37]} Bxa3 {[%emt 0:00:30]} 27. Nxb6 {[%emt 0:00:05]} Nxb6 {[%emt 0:00:06]} 28. Bxb6 {[%emt 0:00:08]} Ke7 {[%emt 0:00:44]} 29. Kc2 {[%emt 0:01:11]} Bd6 {[%emt 0:00:09]} 30. h3 {[%emt 0:00:09]} g6 {[%emt 0:00:06]} 1/2-1/2

[Event "10th LBHM Open 2024"]
[Site "Pune"]
[Date "2024.05.22"]
[Round "9.9"]
[White "Bhosale Shriraj"]
[Black "Kolla Bhaavan"]
[Result "1-0"]
[ECO "A11"]
[WhiteElo "2036"]
[BlackElo "1833"]
[Annotator "RC"]
[PlyCount "117"]
[EventDate "2024.05.21"]
[EventType "swiss"]
[EventCountry "IND"]
[SourceTitle "playchess.com"]
[Source "ChessBase"]
[SourceQuality "1"]
[TimeControl "5400+30"]

1. Nf3 {[%emt 0:01:48]} Nf6 {[%emt 0:00:35]} 2. g3 {[%emt 0:00:04]} d5 {[%emt 0:00:19]} 3. Bg2 {[%emt 0:00:05]} c6 {[%emt 0:00:18]} 4. O-O {[%emt 0:00:17]} Bg4 {[%emt 0:00:05]} 5. d3 {[%emt 0:01:39]} Nbd7 {[%emt 0:00:16]} 6. c4 {[%emt 0:00:57]} dxc4 {[%emt 0:09:54]} 7. dxc4 {[%emt 0:00:11]} e5 {[%emt 0:00:33]} 8. Nc3 {[%emt 0:05:14]} Qc7 {[%emt 0:03:53]} 9. h3 {[%emt 0:02:51]} Bh5 {[%emt 0:06:04]} 10. Nh4 {[%emt 0:04:42]} Rd8 {[%emt 0:07:26]} 11. Qc2 {[%emt 0:03:03]} Nc5 {[%emt 0:06:07]} 12. b3 {[%emt 0:11:56]} Ne6 {[%emt 0:07:29]} 13. e3 {[%emt 0:00:51]} Bg6 {[%emt 0:25:11]} 14. Nxg6 {[%emt 0:00:44]} hxg6 {[%emt 0:00:23]} 15. Bb2 {[%emt 0:00:52]} Qc8 {[%emt 0:03:44]} 16. Ne4 {[%emt 0:02:33]} Be7 {[%emt 0:01:39]} 17. Rfd1 {[%emt 0:01:12]} Rxd1+ {[%emt 0:01:34]} 18. Rxd1 {[%emt 0:00:22]} Nxe4 {[%emt 0:00:37]} 19. Qxe4 {[%emt 0:00:09]} Ng5 {[%emt 0:02:12]} 20. Qxe5 {[%emt 0:01:04]} f6 {[%emt 0:00:41]} 21. Qd4 {[%emt 0:10:24]} Nxh3+ {[%emt 0:03:14]} 22. Kf1 {[%emt 0:00:24]} Qf5 {[%emt 0:01:19]} 23. e4 {[%emt 0:00:23]} Qg4 {[%emt 0:01:37]} 24. e5 {[%emt 0:02:12]} Qf5 {[%emt 0:11:12]} 25. Be4 {[%emt 0:02:08]} fxe5 {[%emt 0:01:27]} 26. Bxf5 {[%emt 0:00:55]} exd4 {[%emt 0:00:00]} 27. Bxg6+ {[%emt 0:00:10]} Kf8 {[%emt 0:00:07]} 28. Bxd4 {[%emt 0:00:30]} Ng5 {[%emt 0:01:10]} 29. Kg2 {[%emt 0:01:34]} Rh6 {[%emt 0:00:16]} 30. Bc2 {[%emt 0:00:18]} c5 {[%emt 0:00:28]} 31. Be3 {[%emt 0:00:18]} Ra6 {[%emt 0:00:06]} 32. a4 {[%emt 0:00:25]} Ke8 {[%emt 0:00:31]} 33. Bf5 {[%emt 0:09:05]} Ne6 {[%emt 0:03:11]} 34. Bxe6 {[%emt 0:00:54]} Rxe6 {[%emt 0:00:09]} 35. Rd3 {[%emt 0:00:19]} Rb6 {[%emt 0:01:46]} 36. g4 {[%emt 0:00:40]} Rg6 {[%emt 0:00:52]} 37. Kg3 {[%emt 0:00:22]} b6 {[%emt 0:00:59]} 38. Bf4 {[%emt 0:00:52]} a6 {[%emt 0:00:11]} 39. Be5 {[%emt 0:00:26]} Kf7 {[%emt 0:01:23]} 40. f4 {[%emt 0:00:26]} b5 {[%emt 0:00:18]} 41. a5 {[%emt 0:02:13]} bxc4 {[%emt 0:01:01]} 42. bxc4 {[%emt 0:00:06]} Rh6 {[%emt 0:00:35]} 43. Rd7 {[%emt 0:00:09]} Rh1 {[%emt 0:00:35]} 44. Ra7 {[%emt 0:00:54]} Rd1 {[%emt 0:00:30]} 45. g5 {[%emt 0:00:28]} Ke6 {[%emt 0:00:27]} 46. Bxg7 {[%emt 0:00:45]} Bd6 {[%emt 0:00:21]} 47. Rxa6 {[%emt 0:01:45]} Kf5 {[%emt 0:00:15]} 48. Be5 {[%emt 0:00:07]} Bxe5 {[%emt 0:00:56]} 49. fxe5 {[%emt 0:00:04]} Kxe5 {[%emt 0:00:26]} 50. Kg4 {[%emt 0:01:22]} Rd4+ {[%emt 0:00:36]} 51. Kh5 {[%emt 0:00:04]} Rxc4 {[%emt 0:00:02]} 52. g6 {[%emt 0:00:20]} Kf5 {[%emt 0:00:26]} 53. Kh6 {[%emt 0:00:26]} Rc1 {[%emt 0:01:02]} 54. Kh7 {[%emt 0:00:22]} Rh1+ {[%emt 0:00:25]} 55. Kg8 {[%emt 0:00:07]} Rh6 {[%emt 0:00:18]} 56. Kf7 {[%emt 0:00:17]} c4 {[%emt 0:00:18]} 57. Rc6 {[%emt 0:00:08]} c3 {[%emt 0:00:04]} 58. Rc5+ {[%emt 0:00:09]} Ke4 {[%emt 0:00:11]} 59. Rxc3 {[%emt 0:00:06]} 1-0

[Event "10th LBHM Open 2024"]
[Site "Pune"]
[Date "2024.05.22"]
[Round "9.10"]
[White "Avirat Chauhan"]
[Black "Arpith S Bijoy"]
[Result "1-0"]
[ECO "B16"]
[WhiteElo "1760"]
[BlackElo "2011"]
[Annotator "RC"]
[PlyCount "123"]
[EventDate "2024.05.21"]
[EventType "swiss"]
[EventCountry "IND"]
[SourceTitle "playchess.com"]
[Source "ChessBase"]
[SourceQuality "1"]
[TimeControl "5400+30"]

1. e4 {[%emt 0:00:05]} c6 {[%emt 0:03:00]} 2. d4 {[%emt 0:00:21]} d5 {[%emt 0:00:10]} 3. Nc3 {[%emt 0:00:35]} dxe4 {[%emt 0:00:09]} 4. Nxe4 {[%emt 0:00:06]} Nf6 {[%emt 0:00:07]} 5. Nxf6+ {[%emt 0:00:07]} gxf6 {[%emt 0:00:07]} 6. c3 {[%emt 0:01:26]} Bf5 {[%emt 0:00:08]} 7. Ne2 {[%emt 0:00:43]} e5 {[%emt 0:11:36]} 8. Ng3 {[%emt 0:02:00]} Be6 {[%emt 0:00:08]} 9. Bd3 {[%emt 0:01:47]} Nd7 {[%emt 0:02:10]} 10. O-O {[%emt 0:02:18]} Qc7 {[%emt 0:00:29]} 11. f4 {[%emt 0:01:29]} Nb6 {[%emt 0:10:02]} 12. fxe5 {[%emt 0:01:42]} fxe5 {[%emt 0:00:11]} 13. Bg5 {[%emt 0:00:23]} Be7 {[%emt 0:02:33]} 14. Bxe7 {[%emt 0:01:17]} Qxe7 {[%emt 0:00:03]} 15. Nf5 {[%emt 0:00:10]} Qf8 {[%emt 0:01:01]} 16. Qe1 {[%emt 0:05:16]} O-O-O {[%emt 0:02:55]} 17. Qe2 {[%emt 1:19:15]} e4 18. Qxe4 {[%emt 0:00:00]} Rg8 {[%emt 0:00:59]} 19. Qe5 {[%emt 0:00:00]} Rd7 {[%emt 0:07:23]} 20. Rae1 {[%emt 0:00:00]} Rd5 {[%emt 0:05:13]} 21. Ng3 {[%emt 0:00:00]} Qg7 {[%emt 0:00:08]} 22. Qf6 {[%emt 0:00:00]} Ra5 {[%emt 0:10:13]} 23. Qxg7 {[%emt 0:00:00]} Rxg7 {[%emt 0:00:02]} 24. Nf5 {[%emt 0:00:00]} Bxf5 {[%emt 0:00:10]} 25. Bxf5+ {[%emt 0:00:00]} Kd8 {[%emt 0:00:02]} 26. a3 {[%emt 0:00:00]} Nc4 {[%emt 0:00:44]} 27. Re2 {[%emt 0:00:00]} Nd6 {[%emt 0:00:11]} 28. Bd3 {[%emt 0:00:00]} Rag5 {[%emt 0:00:24]} 29. g3 {[%emt 0:00:00]} Rxg3+ {[%emt 0:01:15]} 30. hxg3 {[%emt 0:00:00]} Rxg3+ {[%emt 0:00:02]} 31. Kf2 {[%emt 0:00:00]} Rxd3 {[%emt 0:00:16]} 32. Rh1 {[%emt 0:00:00]} Kc7 {[%emt 0:03:27]} 33. Rxh7 {[%emt 0:00:00]} Kb6 {[%emt 0:03:59]} 34. Rh6 {[%emt 0:00:00]} Kc7 {[%emt 0:00:10]} 35. Rf6 {[%emt 0:00:00]} Kd7 {[%emt 0:01:39]} 36. Ke1 {[%emt 0:00:00]} Rh3 {[%emt 0:02:03]} 37. Kd1 {[%emt 0:00:00]} a5 {[%emt 0:00:12]} 38. a4 {[%emt 0:00:00]} Rh1+ {[%emt 0:00:27]} 39. Kc2 {[%emt 0:00:00]} Rh5 {[%emt 0:00:29]} 40. Kb3 {[%emt 0:00:00]} Rh3 {[%emt 0:00:07]} 41. Ref2 {[%emt 0:00:00]} Rh7 {[%emt 0:00:31]} 42. Re2 {[%emt 0:00:00]} Rh3 {[%emt 0:03:34]} 43. Kc2 {[%emt 0:00:00]} Rh4 {[%emt 0:01:42]} 44. b3 {[%emt 0:00:00]} b6 {[%emt 0:00:24]} 45. Rf3 {[%emt 0:00:00]} f5 {[%emt 0:00:53]} 46. Kd3 {[%emt 0:00:00]} c5 {[%emt 0:01:45]} 47. d5 {[%emt 0:00:00]} Rh5 {[%emt 0:04:02]} 48. c4 {[%emt 0:00:00]} Rh4 {[%emt 0:06:52]} 49. Re6 {[%emt 0:00:00]} Re4 {[%emt 0:04:01]} 50. Re3 {[%emt 0:00:00]} Rd4+ {[%emt 0:00:40]} 51. Kc2 {[%emt 0:00:00]} f4 {[%emt 0:02:38]} 52. Rh3 {[%emt 0:00:00]} Nf5 {[%emt 0:00:06]} 53. Rh7+ {[%emt 0:00:00]} Kd8 {[%emt 0:00:01]} 54. Rg6 {[%emt 0:00:00]} Ne3+ {[%emt 0:00:12]} 55. Kb2 {[%emt 0:00:00]} Rd2+ {[%emt 0:00:04]} 56. Kc3 {[%emt 0:00:00]} Rg2 {[%emt 0:00:04]} 57. Rxg2 {[%emt 0:00:00]} Nxg2 {[%emt 0:00:05]} 58. Rh3 {[%emt 0:00:00]} Ke7 {[%emt 0:00:15]} 59. Kd3 {[%emt 0:00:00]} f3 {[%emt 0:00:14]} 60. Rxf3 {[%emt 0:00:00]} Ne1+ {[%emt 0:00:07]} 61. Ke4 {[%emt 0:00:00]} Nxf3 {[%emt 0:00:07]} 62. Kxf3 {[%emt 0:00:00]} 1-0